bitfinex-derivatives/quotes_ETHF0:USTF0_20250810
["timestamp","ask_amount","ask_price","bid_price","bid_amount"]
[1754795868553,5.42603,4247.2,4247.1,2.7445]
[1754795868756,3.2078,4247.2,4247.1,2.7445]
[1754795868954,0.5,4247.7,4247.1,2.7445]
[1754795868955,4.06088,4247.7,4247.2,2.7445]
[1754795869260,4.06088,4247.7,4247.3,1.1078]
[1754795869557,3.7078,4247.7,4247.6,2.7445]
[1754795869758,3.7078,4247.7,4247.6,3.2445]
[1754795869956,0.5,4247.7,4247.6,3.2445]
[1754795871448,2.3651,4247.7,4247.6,3.2445]
[1754795871755,5.8496,4247.7,4247.6,0.797]
[1754795872055,3.2078,4247.1,4245.6,0.85989427]
[1754795872259,3.2078,4245.7,4244.2,3.2078]
[1754795872556,3.2078,4245.7,4245.4,1.6367]
[1754795872755,3.2078,4245.7,4244.7,3.2078]
[1754795872756,3.2078,4245.7,4245.6,2.7445]
[1754795873054,2.7078,4245.7,4245.6,1.9048]
[1754795873262,2.7078,4245.7,4245.6,2.7445]
[1754795873453,2.7078,4245.7,4245.6,0.797]
[1754795874258,2.7078,4245.7,4245.6,1.9048]
[1754795874447,2.7078,4245.7,4245.6,2.7445]
[1754795874651,0.35325,4245.6,4244.7,0.35333]
[1754795874852,2.7078,4245.7,4245.0,1.1078]
[1754795875056,0.005,4245.5,4245.1,0.3533]
[1754795875254,0.005,4245.5,4245.4,2.7445]
[1754795875555,0.35322,4246.1,4245.4,0.35327]
[1754795875756,0.35322,4246.1,4245.6,2.7445]
[1754795876055,0.35322,4246.1,4245.8,0.8397]
[1754795876359,3.56101,4246.2,4246.0,2.7445]
[1754795876550,3.56101,4246.2,4246.1,1.9475]
[1754795876755,3.56101,4246.2,4246.1,2.7445]
[1754795876956,3.2078,4246.2,4246.1,2.7445]
[1754795877559,0.35316,4246.7,4246.1,2.7445]
[1754795877861,0.35316,4246.7,4246.4,2.7445]
[1754795878162,0.35316,4246.7,4245.8,0.35323]
[1754795878457,0.35315,4246.9,4246.7,2.7445]
[1754795878655,0.35315,4246.9,4246.8,2.7445]
[1754795880160,3.56094,4247.0,4246.8,0.8397]
[1754795880359,3.56094,4247.0,4246.9,1.9048]
[1754795880563,3.56094,4247.0,4246.9,0.797]
[1754795880861,0.35317,4246.6,4246.5,1.9048]
[1754795881163,0.35317,4246.6,4246.5,2.7445]
[1754795881557,0.35316,4246.8,4246.6,0.8397]
[1754795881755,3.2078,4247.0,4245.6,26.6568]
[1754795881961,3.56094,4247.0,4246.9,2.7445]
[1754795882160,3.2078,4247.0,4246.9,2.7445]
[1754795884153,0.35311,4247.4,4246.1,3.2078]
[1754795884154,0.35311,4247.4,4247.0,2.7445]
[1754795884357,3.5609,4247.5,4247.1,0.8397]
[1754795884560,3.5609,4247.5,4247.2,0.8397]
[1754795884763,3.5609,4247.5,4247.3,1.9475]
[1754795884964,0.35312,4247.3,4246.6,0.35317]
[1754795885159,3.2078,4247.5,4246.8,0.35315]
[1754795885354,3.2078,4247.5,4247.0,0.35313]
[1754795885963,3.5609,4247.5,4246.9,0.35315]
[1754795886163,0.3531,4247.5,4247.2,2.692]
[1754795886364,0.3531,4247.5,4247.2,0.8177]
[1754795886661,3.2078,4248.0,4247.5,1.0481]
[1754795886861,0.5,4247.0,4246.9,3.04514]
[1754795888263,0.5,4247.0,4246.9,2.692]
[1754795889262,0.5,4247.0,4246.9,0.8177]
[1754795889465,3.7078,4247.0,4246.9,0.8177]
[1754795890467,0.0012,4246.8,4246.6,0.005]
[1754795891263,0.0012,4246.8,4246.6,0.8227]
[1754795891561,0.0012,4246.8,4246.6,0.005]
[1754795891770,0.0012,4246.7,4246.6,0.005]
[1754795892070,0.35315,4246.9,4246.6,0.8227]
[1754795892266,0.35315,4246.9,4246.7,0.8177]
[1754795892467,0.35435,4246.9,4246.7,0.8177]
[1754795892668,0.0012,4246.8,4246.6,0.005]
[1754795893166,0.35315,4246.9,4246.7,0.8177]
[1754795893370,0.35315,4246.9,4246.8,0.8177]
[1754795894469,0.35315,4246.9,4246.6,0.005]
[1754795894470,3.7078,4247.0,4246.7,2.692]
[1754795894768,3.7078,4247.0,4246.8,1.8658]
[1754795894967,3.7078,4247.0,4246.9,2.692]
[1754795896862,0.5,4247.0,4246.9,2.692]
[1754795897062,3.2078,4247.5,4247.0,3.04514]
[1754795897272,3.2078,4247.5,4247.0,0.35314]
[1754795897459,3.2078,4247.5,4247.3,1.6439]
[1754795897667,3.2078,4247.5,4247.4,2.692]
[1754795898169,3.2078,4247.5,4247.4,0.8177]
[1754795898472,3.7068,4247.5,4247.4,0.8177]
[1754795898865,3.7068,4247.5,4247.4,1.8658]
[1754795899471,4.2254,4247.5,4247.4,1.8658]
[1754795900578,4.2254,4247.5,4247.4,3.6686]
[1754795900873,4.2254,4247.5,4247.4,4.4948]
[1754795901268,1.37071,4247.4,4247.3,0.8177]
[1754795901472,1.37073,4247.1,4247.0,1.8658]
[1754795901775,1.37073,4247.1,4247.0,3.6686]
[1754795902179,3.2078,4247.5,4247.0,1.8028]
[1754795902368,3.2078,4247.5,4247.4,4.4948]
[1754795903676,0.35307,4247.8,4247.4,4.4948]
[1754795903979,1.0176,4247.7,4247.6,4.4948]
[1754795904664,1.0176,4247.7,4247.6,3.6686]
[1754795904865,1.0176,4247.7,4247.6,0.8177]
[1754795905073,0.35307,4247.8,4247.2,1.8743]
[1754795905074,1.3707,4247.4,4247.3,0.8177]
[1754795905277,4.5785,4247.4,4247.3,3.6686]
[1754795905576,4.5785,4247.4,4247.3,0.8177]
[1754795906172,0.35314,4247.0,4246.9,2.3658]
[1754795906376,0.85214,4247.0,4246.9,0.5]
[1754795906578,0.85334,4247.0,4246.9,0.5]
[1754795906975,1.35334,4247.0,4246.9,0.5]
[1754795908365,1.35214,4247.0,4246.9,1.3177]
[1754795908571,1.35214,4247.0,4246.9,2.3658]
[1754795909481,1.35334,4247.0,4246.9,0.5]
[1754795911370,1.35214,4247.0,4246.9,1.3177]
[1754795911575,0.5,4247.0,4246.9,3.192]
[1754795914486,0.999,4247.0,4246.9,4.9948]
[1754795914873,1.5176,4247.0,4246.9,4.1686]
[1754795915386,1.5176,4247.0,4246.9,1.3177]
[1754795915977,1.5176,4247.0,4246.9,2.3846]
[1754795916679,1.5176,4247.0,4246.9,2.9043]
[1754795916880,1.5176,4247.0,4246.9,3.624]
[1754795917075,1.5176,4247.0,4246.9,4.1581]
[1754795917280,1.5176,4247.0,4246.9,4.9298]
[1754795922091,0.5,4247.0,4246.9,4.9298]
[1754795922587,3.2078,4247.4,4247.3,4.4141]
[1754795922893,2.361,4247.4,4247.3,4.4141]
[1754795923083,1.232,4247.4,4247.3,4.4141]
[1754795923485,0.35308,4247.8,4247.7,1.7735]
[1754795923691,0.35306,4247.9,4247.8,4.4141]
[1754795923988,3.2078,4248.2,4247.9,1.8689]
[1754795924192,3.2078,4248.2,4248.1,1.7735]
[1754795924387,3.2078,4248.2,4248.1,4.4141]
[1754795926195,0.35303,4248.4,4248.1,1.7735]
[1754795926486,2.17391916,4248.7,4248.6,2.6406]
[1754795926689,0.54741916,4248.7,4248.6,4.4141]
[1754795926890,3.56079,4248.8,4248.7,1.5737]
[1754795927189,3.56079,4248.8,4248.7,4.4141]
[1754795927190,3.2078,4248.8,4248.7,4.4141]
[1754795927786,0.54741916,4249.0,4248.7,1.7735]
[1754795927985,0.35296,4249.2,4249.1,1.2394]
[1754795928188,3.2078,4249.3,4249.1,4.4141]
[1754795928381,0.54741916,4249.5,4249.4,4.4141]
[1754795928588,3.2078,4249.8,4249.7,1.7735]
[1754795928789,3.2078,4249.8,4249.7,4.4141]
[1754795930394,1.8315,4249.7,4248.9,2.6406]
[1754795930586,1.8315,4249.6,4249.0,0.802]
[1754795930784,0.763,4249.5,4249.0,0.802]
[1754795931398,1.7801,4249.2,4249.1,4.4141]
[1754795931589,3.6116,4249.2,4249.1,3.6424]
[1754795931990,2.5431,4249.2,4249.1,4.4141]
[1754795932193,0.54741916,4249.7,4248.8,3.2078]
[1754795932390,0.35292,4249.7,4249.6,1.7735]
[1754795932590,3.56071,4249.8,4249.6,1.7735]
[1754795933100,3.2078,4249.8,4249.7,4.4141]
[1754795933693,6.65144336,4250.6,4250.5,0.5197]
[1754795933899,7.71994336,4250.6,4250.5,2.3886]
[1754795934092,5.93984336,4250.6,4250.5,1.8689]
[1754795934291,5.93984336,4250.6,4250.5,2.6406]
[1754795934595,5.93984336,4250.6,4250.5,1.8689]
[1754795934798,6.43994336,4250.6,4250.5,0.802]
[1754795934997,0.35293,4249.6,4248.7,3.2078]
[1754795935199,0.35293,4249.6,4248.7,4.8946951]
[1754795935395,0.35295,4249.4,4249.0,1.0669]
[1754795935586,1.11595,4249.4,4249.2,2.6406]
[1754795935791,1.11595,4249.4,4248.7,3.42722348]
[1754795935997,0.35297,4249.0,4248.7,3.2078]
[1754795936197,1.11597,4249.0,4248.7,3.2078]
[1754795936594,2.18447,4249.0,4248.8,2.6406]
[1754795936896,0.763,4248.9,4248.8,0.7717]
[1754795937099,0.35297,4249.0,4248.9,0.7717]
[1754795937396,1.11597,4249.0,4248.9,2.6406]
[1754795938192,0.35297,4249.0,4248.9,2.6406]
[1754795938992,2.18447,4249.0,4248.9,0.802]
[1754795939199,0.763,4248.9,4248.3,1.8386]
[1754795939696,1.116,4248.7,4248.6,2.6406]
[1754795939898,2.1845,4248.7,4248.6,2.6406]
[1754795940199,1.116,4248.7,4248.6,0.802]
[1754795940503,2.1845,4248.7,4248.6,0.802]
[1754795940703,2.1845,4248.7,4248.6,2.6406]
[1754795940904,1.116,4248.7,4248.6,2.6406]
[1754795941100,2.1845,4248.7,4248.6,2.6406]
[1754795941304,0.353,4248.7,4248.6,1.8689]
[1754795941504,0.353,4248.7,4248.6,2.6406]
[1754795941901,0.353,4248.7,4248.6,4.4141]
[1754795942102,0.35299,4248.8,4248.6,4.4141]
[1754795942305,1.31088563,4249.2,4249.1,4.4141]
[1754795942306,0.54788563,4249.2,4249.1,4.4141]
[1754795942606,3.96455,4249.3,4249.2,3.1083]
[1754795943002,3.96455,4249.3,4249.2,4.4141]
[1754795943202,0.35294,4249.4,4249.2,4.4141]
[1754795943404,0.35294,4249.4,4249.3,4.4141]
[1754795943602,3.2078,4249.5,4249.3,4.4141]
[1754795943809,3.2078,4249.5,4249.4,4.4141]
[1754795944311,0.35292,4249.7,4249.4,1.7735]
[1754795944509,3.96452,4249.7,4249.6,4.4141]
[1754795944701,3.6116,4249.7,4249.6,4.4141]
[1754795945603,4.113,4249.7,4249.6,0.802]
[1754795946509,3.6116,4249.7,4249.6,0.802]
[1754795947508,3.6116,4249.7,4249.6,1.3161]
[1754795947708,3.6116,4249.7,4249.6,3.1174]
[1754795947910,3.6116,4249.7,4249.6,4.4507]
[1754795948209,2.12391,4249.8,4249.7,4.4181]
[1754795948409,3.96731,4249.8,4249.7,4.4181]
[1754795951407,3.96731,4249.8,4249.7,0.7694]
[1754795951603,4.46871,4249.8,4249.7,0.7694]
[1754795951803,3.6144,4249.3,4249.2,1.585]
[1754795952010,3.6144,4249.3,4249.2,1.2835]
[1754795952211,3.6144,4249.3,4249.1,0.8247]
[1754795952212,1.0726,4248.9,4248.7,0.7694]
[1754795952416,3.6144,4248.8,4248.7,2.0139]
[1754795952714,3.6144,4248.8,4248.7,4.4181]
[1754795955110,2.5446,4248.8,4248.7,4.4181]
[1754795955412,3.6144,4248.8,4248.7,4.4181]
[1754795955721,3.6144,4248.8,4248.7,1.2835]
[1754795955918,3.6144,4248.8,4248.7,4.4181]
[1754795957411,0.35298,4248.9,4248.7,1.7531]
[1754795957716,0.35298,4248.9,4248.8,4.4181]
[1754795958017,3.56078,4249.0,4248.8,4.4181]
[1754795958209,0.35298,4249.0,4248.9,4.4181]
[1754795958411,0.35296,4249.2,4249.1,1.7531]
[1754795958611,0.35296,4249.2,4249.1,4.4181]
[1754795959513,1.67331368,4249.4,4249.2,2.665]
[1754795959718,2.20051368,4249.4,4249.3,4.4181]
[1754795959918,1.65374,4249.4,4249.3,4.4181]
[1754795960112,2.89754,4249.4,4249.3,4.4181]
[1754795960312,3.96734,4249.4,4249.3,4.4181]
[1754795960816,4.51415285,4249.4,4249.3,4.4181]
[1754795962720,3.96734,4249.4,4249.3,4.4181]
[1754795963127,2.89754,4249.4,4249.3,4.4181]
[1754795963927,3.96734,4249.4,4249.3,4.4181]
[1754795964228,1.771,4248.9,4248.8,1.7531]
[1754795964427,3.6144,4248.9,4248.8,3.6487]
[1754795964631,3.6144,4248.9,4248.8,4.4181]
[1754795964831,3.96738,4248.9,4248.8,2.5225]
[1754795965030,4.46878,4248.9,4248.8,1.2835]
[1754795965327,4.46878,4248.9,4248.7,0.5]
[1754795965328,4.1144,4248.8,4248.7,1.0141]
[1754795965526,4.66134664,4248.8,4248.7,3.324]
[1754795965726,4.1144,4248.8,4248.7,4.1487]
[1754795966038,4.1144,4248.8,4248.7,4.9181]
[1754795966228,3.0446,4248.8,4248.7,4.9181]
[1754795966830,0.5,4248.8,4248.7,4.9181]
[1754795967627,1.0272,4248.8,4248.7,4.9181]
[1754795968132,3.0446,4248.8,4248.7,4.9181]
[1754795970137,4.1144,4248.8,4248.7,4.9181]
[1754795970339,4.6158,4248.8,4248.7,1.7835]
[1754795970636,4.1144,4248.8,4248.7,4.0934]
[1754795971032,4.1144,4248.8,4248.7,4.9181]
[1754795971633,4.1144,4248.8,4248.7,0.5]
[1754795971935,4.6158,4248.8,4248.7,0.5]
[1754795972140,5.16210192,4248.8,4248.7,0.5]
[1754795972532,3.96747,4247.8,4247.7,4.4181]
[1754795972737,3.6144,4247.8,4247.7,4.4181]
[1754795973334,0.35301,4248.6,4248.1,4.4181]
[1754795973636,1.92279,4248.8,4248.5,4.4181]
[1754795973842,1.92279,4248.8,4248.7,4.9181]
[1754795973843,2.62399,4248.8,4248.7,4.9181]
[1754795974640,0.5,4248.8,4248.7,4.9181]
[1754795975339,0.7582,4248.7,4247.7,1.0796]
[1754795975635,3.08944258,4248.6,4248.2,0.7612]
[1754795975838,0.35307,4247.9,4247.8,3.5762]
[1754795976031,0.35305,4248.1,4248.0,1.7354]
[1754795976238,0.35305,4248.1,4248.0,3.5762]
[1754795976544,0.35305,4248.1,4247.2,3.5762]
[1754795976545,0.511,4247.3,4247.2,3.5762]
[1754795976838,0.511,4246.7,4246.6,0.7662]
[1754795977046,3.2078,4246.7,4246.6,3.5812]
[1754795977236,3.56096,4246.7,4246.6,3.5812]
[1754795977437,3.2078,4246.7,4246.6,4.3784]
[1754795978442,3.56096,4246.7,4246.6,4.3784]
[1754795979734,3.2078,4246.7,4246.6,4.3784]
[1754795980444,0.35312,4247.2,4246.6,1.7404]
[1754795980642,0.35312,4247.3,4247.2,4.3734]
[1754795981443,7.07932,4247.3,4247.2,4.3734]
[1754795981646,7.07932,4247.3,4247.2,2.4966]
[1754795982146,7.07932,4247.3,4247.2,1.2727]
[1754795982443,1.7511,4246.7,4246.6,2.5016]
[1754795982649,3.5184,4246.7,4246.6,3.5812]
[1754795982942,3.5184,4246.7,4246.6,4.3784]
[1754795983338,0.35314,4247.0,4246.6,4.3784]
[1754795983647,3.87154,4247.0,4246.9,4.3734]
[1754795983848,0.5221,4247.0,4246.9,4.3734]
[1754795984039,3.2078,4247.3,4247.1,1.7354]
[1754795984340,3.2078,4247.3,4247.2,4.3734]
[1754795984746,5.7171,4247.3,4247.2,4.3734]
[1754795984936,6.7262,4247.3,4247.2,1.2727]
[1754795985140,7.2377,4247.3,4247.2,1.2727]
[1754795985342,2.8004,4247.0,4246.9,0.7612]
[1754795985547,3.5184,4247.0,4246.9,4.3734]
[1754795985941,0.7582,4247.2,4247.0,0.7972]
[1754795986248,0.7582,4247.2,4247.1,4.3734]
[1754795986448,3.5184,4247.2,4247.1,4.3734]
[1754795986950,3.5184,4247.2,4247.1,0.7612]
[1754795987141,3.5184,4247.2,4246.6,0.005]
[1754795987142,0.35315,4246.9,4246.6,0.005]
[1754795987343,3.5184,4246.8,4246.7,3.5762]
[1754795987648,3.5184,4246.8,4246.7,4.3734]
[1754795988145,3.5184,4246.7,4246.6,0.005]
[1754795988353,4.0299,4246.7,4246.6,0.005]
[1754795988646,7.15625594,4246.7,4246.6,0.005]
[1754795988846,7.72848232,4246.7,4246.6,0.005]
[1754795989442,7.15625594,4246.7,4246.6,0.005]
[1754795990149,7.72863502,4246.7,4246.6,0.005]
[1754795990446,7.15625594,4246.7,4246.6,0.005]
[1754795990646,7.72857207,4246.7,4246.6,0.005]
[1754795990840,6.64475594,4246.7,4246.6,0.7662]
[1754795991038,6.64475594,4246.7,4246.6,2.3573]
[1754795991236,3.5184,4246.7,4246.6,4.3784]
[1754795992249,5.7171,4246.8,4246.7,4.3734]
[1754795992450,7.29851847,4246.8,4246.7,4.3734]
[1754795993551,7.81001847,4246.8,4246.7,0.7612]
[1754795996548,7.81001847,4246.8,4246.6,0.005]
[1754795996854,4.60221847,4246.7,4246.6,0.005]
[1754795997051,4.60221847,4246.7,4246.6,0.7662]
[1754795997243,4.09071847,4246.7,4246.6,1.2777]
[1754795997448,4.09071847,4246.7,4246.6,4.3784]
[1754795997849,7.61711568,4246.7,4246.6,0.005]
[1754795998754,7.04479721,4246.7,4246.6,0.005]
[1754795999350,7.04479721,4246.7,4246.6,0.7662]
[1754795999551,6.53329721,4246.7,4246.6,2.8563]
[1754795999753,6.53329721,4246.7,4246.6,2.5016]
[1754795999951,6.53329721,4246.7,4246.6,4.3784]
[1754796000346,1.7913,4246.7,4246.6,4.3784]
[1754796000551,3.5184,4246.7,4246.6,4.3784]
[1754796000854,7.67994373,4246.7,4246.6,1.2777]
[1754796001447,7.16862858,4246.7,4246.6,4.3784]
[1754796001648,6.15952858,4246.7,4246.6,4.3784]
[1754796001852,1.2401,4246.7,4246.6,4.3784]
[1754796002150,3.7810495,4246.8,4246.6,4.3784]
[1754796002353,3.2078,4246.8,4246.7,4.3734]
[1754796003860,3.966,4246.8,4246.7,4.3734]
[1754796004057,3.2078,4246.8,4246.7,4.3734]
[1754796005664,7.2691,4246.8,4246.7,3.5762]
[1754796005864,7.3298495,4246.8,4246.7,2.4966]
[1754796006164,7.3298495,4246.8,4246.7,4.2858]
[1754796007361,7.8423495,4246.8,4246.7,0.7612]
[1754796007862,7.8423495,4246.8,4246.7,1.3102]
[1754796008762,7.8423495,4246.8,4246.7,2.3195]
[1754796008967,7.3298495,4246.8,4246.7,3.5181]
[1754796010660,7.3298495,4246.8,4246.7,4.298]
[1754796015066,6.3136495,4246.8,4246.7,4.298]
[1754796015264,3.7810495,4246.8,4246.7,4.298]
[1754796015459,3.2078,4246.8,4246.7,4.298]
[1754796017070,1.0162,4247.4,4247.0,1.7476]
[1754796017071,0.5732495,4247.3,4247.0,1.7476]
[1754796017267,3.2078,4247.4,4247.3,4.3475]
[1754796017970,3.2078,4247.4,4247.0,1.0093]
[1754796018176,3.2078,4247.4,4247.3,1.7476]
[1754796018378,3.56091,4247.4,4247.3,2.5275]
[1754796018576,3.56091,4247.4,4247.3,4.3475]
[1754796018776,7.16301,4247.4,4247.3,4.3475]
[1754796019076,7.73880516,4247.4,4247.3,4.3475]
[1754796020087,3.95525,4246.9,4246.8,3.5368]
[1754796020292,1.8044,4246.7,4246.6,1e-05]
[1754796020497,0.35327,4245.4,4245.2,1.7476]
[1754796020687,0.35327,4245.4,4245.3,4.3475]
[1754796020688,3.56107,4245.4,4245.3,4.3475]
[1754796021787,3.2078,4245.4,4245.3,4.3475]
[1754796021985,0.35324,4245.8,4245.7,1.7476]
[1754796022186,3.95534,4245.8,4245.7,3.5676]
[1754796022385,0.35328,4245.3,4245.2,4.3475]
[1754796023293,4.34257,4245.5,4245.4,1.7476]
[1754796023489,4.34257,4245.5,4245.4,4.3475]
[1754796023992,3.2078,4245.5,4245.4,4.3475]
[1754796024491,3.2078,4246.0,4245.4,4.3475]
[1754796024693,3.2078,4246.0,4245.9,4.3475]
[1754796024882,0.35319,4246.5,4245.9,4.3475]
[1754796025088,1.25713942,4247.4,4244.6,34.80835]
[1754796025089,3.2078,4246.6,4246.5,4.3475]
[1754796025587,4.2888,4246.6,4246.5,4.3475]
[1754796025794,5.7937,4246.6,4246.5,4.3475]
[1754796025989,3.2078,4246.6,4246.5,4.3475]
[1754796026392,0.5,4246.8,4246.7,1.7476]
[1754796026592,0.5,4246.8,4246.7,4.3475]
[1754796026800,0.85316,4246.8,4246.7,4.3475]
[1754796027295,0.5,4246.8,4246.7,4.3475]
[1754796027589,3.78262022,4247.2,4246.7,10.3475]
[1754796027786,6.8099,4247.8,4247.7,1.2301]
[1754796027983,2.5859,4247.5,4247.4,4.3475]
[1754796028186,0.57482022,4247.7,4247.6,3.6664]
[1754796028392,3.2078,4247.8,4247.6,3.6664]
[1754796028393,3.2078,4247.8,4247.6,1.7476]
[1754796028691,0.35303,4248.3,4248.1,1.5906]
[1754796028992,1.8044,4247.9,4247.8,4.3475]
[1754796029181,0.57482539,4248.1,4247.8,4.3475]
[1754796029380,1.25713942,4249.2,4247.8,4.3475]
[1754796029381,0.57482539,4248.5,4248.4,4.3475]
[1754796029586,4.0181,4249.8,4248.7,4.3475]
[1754796029890,0.35292,4249.6,4248.7,7.5553]
[1754796030091,0.7815,4249.6,4248.7,7.5553]
[1754796030489,0.35296,4249.2,4248.7,7.5553]
[1754796030690,2.0842,4248.7,4248.6,0.549]
[1754796030883,3.3962,4248.7,4248.6,4.3475]
[1754796031088,4.4124,4248.7,4248.6,4.3475]
[1754796031289,3.6021,4248.7,4248.6,4.3475]
[1754796031488,1.081,4248.7,4248.6,4.3475]
[1754796031687,1.8625,4248.7,4248.6,4.3475]
[1754796031887,1.081,4248.7,4248.6,4.3475]
[1754796032294,1.081,4248.3,4248.2,2.7569]
[1754796032593,2.5859,4247.8,4247.7,1.2301]
[1754796032793,4.4124,4247.8,4247.7,1.2301]
[1754796033092,1.8044,4247.8,4247.7,4.3475]
[1754796033682,0.35304,4248.3,4247.8,2.5999]
[1754796033884,1.081,4248.3,4248.2,4.3475]
[1754796034191,0.57328572,4248.7,4248.2,1.7476]
[1754796034385,3.21691475,4248.8,4248.6,1.7476]
[1754796034586,3.21691475,4248.8,4248.7,4.3475]
[1754796035193,0.00911475,4248.8,4248.7,4.3475]
[1754796035589,0.50911475,4248.8,4248.7,4.8475]
[1754796036191,3.2078,4249.8,4248.7,6.5]
[1754796036492,3.2078,4249.8,4249.3,0.35295]
[1754796036790,3.2078,4249.8,4249.5,0.7971]
[1754796036994,3.2078,4249.8,4249.6,1.8103]
[1754796037191,3.2078,4249.8,4249.7,1.8331]
[1754796037394,3.56071,4249.8,4249.4,1.8331]
[1754796037600,3.56071,4249.8,4249.5,1.8331]
[1754796037803,0.7787,4249.6,4249.5,2.6074]
[1754796038093,0.7787,4249.8,4249.7,1.8331]
[1754796038395,2.577,4249.3,4249.1,3.2078]
[1754796038595,0.7787,4249.0,4248.7,1.2743]
[1754796038793,0.5,4248.8,4248.7,3.1074]
[1754796040193,3.077,4248.8,4248.7,0.5]
[1754796041493,0.7787,4247.8,4247.6,1.8331]
[1754796041693,0.35309,4247.6,4247.0,35.7401]
[1754796041901,0.35311,4247.3,4247.1,0.7743]
[1754796042101,1.0454,4247.7,4247.0,33.907]
[1754796042302,0.35306,4248.0,4247.1,2.6074]
[1754796042497,0.35309,4247.7,4247.1,2.6074]
[1754796042899,0.35311,4247.4,4247.0,33.907]
[1754796043096,0.7787,4247.4,4247.2,2.6074]
[1754796043297,0.35311,4247.3,4246.9,3.2078]
[1754796043499,0.35316,4246.8,4246.6,0.7743]
[1754796043798,1.8241,4246.7,4246.6,1.8103]
[1754796044001,2.577,4246.7,4246.6,1.8103]
[1754796044398,2.577,4246.7,4246.6,2.6074]
[1754796044699,1.8241,4246.7,4246.6,2.6074]
[1754796044899,1.8241,4246.7,4246.0,2.6074]
[1754796044900,0.35317,4246.6,4246.0,2.6074]
[1754796045199,0.35317,4246.6,4246.1,0.7971]
[1754796045496,0.7529,4246.5,4246.2,0.7743]
[1754796045699,1.8241,4246.4,4246.3,2.6074]
[1754796045897,0.35318,4246.6,4246.3,2.6074]
[1754796046096,1.13188,4246.6,4246.5,2.6074]
[1754796046504,2.17728,4246.6,4246.5,2.6074]
[1754796046803,0.7787,4246.2,4246.1,0.005]
[1754796047106,2.577,4246.2,4246.1,0.005]
[1754796048199,5.0061,4246.6,4246.1,2.6124]
[1754796048398,0.35319,4246.4,4246.1,0.005]
[1754796048598,0.7787,4246.4,4246.1,0.005]
[1754796048800,1.39858,4246.5,4246.1,0.005]
[1754796048996,3.56097,4246.6,4246.1,0.005]
[1754796049301,0.88298,4246.4,4244.7,3.2078]
[1754796049498,0.35327,4245.4,4244.7,3.2078]
[1754796049699,0.35327,4245.4,4245.1,0.7971]
[1754796049899,1.13197,4245.4,4245.2,2.6074]
[1754796050096,0.3533,4245.1,4244.7,3.2078]
[1754796050305,0.7787,4245.1,4244.7,3.2078]
[1754796050598,1.0454,4245.4,4244.7,3.2078]
[1754796050807,1.0454,4245.4,4244.9,1.8331]
[1754796051101,1.0454,4245.4,4244.7,3.2078]
[1754796051102,0.35328,4245.3,4244.7,3.2078]
[1754796051398,0.35328,4245.3,4245.0,2.6074]
[1754796051601,2.577,4245.0,4244.8,1.8331]
[1754796051904,2.577,4244.9,4244.8,1.8331]
[1754796052705,0.7787,4244.9,4244.8,2.6074]
[1754796052902,3.2078,4245.5,4244.7,4.0049]
[1754796053100,2.577,4244.8,4244.7,0.7971]
[1754796053299,0.7529,4244.4,4244.2,0.7971]
[1754796053501,0.7529,4244.4,4243.6,1.8331]
[1754796053502,0.3534,4243.9,4243.6,1.8331]
[1754796053699,0.3534,4243.9,4243.1,33.911]
[1754796053700,0.35344,4243.5,4243.1,33.911]
[1754796053901,1.7983,4243.3,4243.1,1.036]
[1754796054201,0.7529,4243.3,4243.2,0.7971]
[1754796054399,0.35341,4243.8,4243.1,1.8103]
[1754796054599,2.577,4243.2,4243.1,1.8103]
[1754796054801,2.577,4243.2,4243.1,2.6074]
[1754796055105,0.7787,4243.2,4243.1,2.6074]
[1754796055699,1.7983,4243.6,4243.1,2.6074]
[1754796055900,1.7983,4243.5,4242.8,0.35348]
[1754796056105,0.7787,4243.4,4243.3,2.6074]
[1754796056702,1.8241,4243.1,4242.1,0.35355]
[1754796056902,0.3535,4242.7,4242.0,3.2078]
[1754796057101,1.7983,4242.5,4242.0,3.2078]
[1754796057396,6.31235957,4243.0,4242.0,3.2078]
[1754796057397,2.577,4242.4,4242.0,3.2078]
[1754796057610,3.85745957,4242.8,4242.2,0.7971]
[1754796057809,0.7787,4242.6,4242.5,2.6074]
[1754796058001,3.9865,4243.0,4242.5,0.35351]
[1754796058304,0.7787,4243.0,4242.9,2.6074]
[1754796058507,2.577,4243.0,4242.0,5.39445]
[1754796058706,0.3535,4242.7,4242.0,3.2078]
[1754796058899,1.13221,4242.5,4242.0,3.2078]
[1754796059100,1.7983,4242.3,4242.0,3.2078]
[1754796059302,2.577,4242.1,4241.9,1.5714]
[1754796059501,2.577,4242.0,4241.9,1.5714]
[1754796060213,2.577,4242.0,4241.9,2.6074]
[1754796061111,0.7787,4242.3,4241.8,0.7743]
[1754796061301,0.7787,4242.3,4241.9,0.7743]
[1754796061505,0.005,4242.5,4242.3,2.18663]
[1754796061706,0.005,4242.5,4242.4,2.6074]
[1754796062105,3.2078,4243.7,4243.2,0.35345]
[1754796062412,1.8241,4244.7,4243.6,3.2078]
[1754796062613,0.8832,4245.4,4240.9,0.88411]
[1754796062614,1.5316,4244.2,4242.9,3.2078]
[1754796062914,0.35343,4243.6,4242.8,1.8331]
[1754796063107,2.577,4243.3,4242.3,2.6074]